bitfinex/quotes_BTCUSD_20250730
["timestamp","ask_amount","ask_price","bid_price","bid_amount"]
[1753887989572,7.7056806,118810.0,118800.0,3.32989838]
[1753887989803,7.72108838,118810.0,118800.0,3.36199838]
[1753887989995,7.72108838,118810.0,118800.0,3.36510838]
[1753887990197,7.72108838,118810.0,118800.0,3.21830838]
[1753887990419,7.7210978,118810.0,118800.0,3.34053838]
[1753887990807,7.37142132,118810.0,118800.0,3.34255838]
[1753887991028,7.37142132,118810.0,118800.0,3.36163549]
[1753887991358,7.37144651,118810.0,118800.0,3.36163549]
[1753887991573,7.752778,118810.0,118800.0,3.29410549]
[1753887991771,7.75277847,118810.0,118800.0,3.29410549]
[1753887991984,7.75277847,118810.0,118800.0,3.32440549]
[1753887992774,7.75277847,118810.0,118800.0,3.20217549]
[1753887993057,7.75277847,118810.0,118800.0,3.17187549]
[1753887993614,2.75277847,118810.0,118800.0,3.29410549]
[1753887993838,7.75277847,118810.0,118800.0,3.29410549]
[1753887994039,7.84544847,118810.0,118800.0,3.16344017]
[1753887994236,7.83004499,118810.0,118800.0,2.73827811]
[1753887994446,7.83004499,118810.0,118800.0,2.72984279]
[1753887994701,7.81686582,118810.0,118800.0,2.72984279]
[1753887994903,7.81686582,118810.0,118800.0,2.72140747]
[1753887995104,7.81586582,118810.0,118800.0,2.72140747]
[1753887995308,7.11651286,118810.0,118800.0,2.71297215]
[1753887995528,7.81986582,118810.0,118800.0,2.71397215]
[1753887995733,7.81986582,118810.0,118800.0,2.29405459]
[1753887995950,7.12051286,118810.0,118800.0,2.03077308]
[1753887996153,2.79057307,118810.0,118800.0,1.49506864]
[1753887996357,7.8208842,118810.0,118800.0,1.36718935]
[1753887996528,7.06757297,118810.0,118800.0,1.35875403]
[1753887996783,7.47413593,118810.0,118800.0,1.32923041]
[1753887996983,7.31146894,118810.0,118800.0,1.50935509]
[1753887997106,7.51146894,118810.0,118800.0,1.50935509]
[1753887997317,7.52679925,118810.0,118800.0,1.46770977]
[1753887997513,7.58906925,118810.0,118800.0,1.31235977]
[1753887997831,7.62058741,118810.0,118800.0,1.30392331]
[1753887998039,7.62058749,118810.0,118800.0,1.30392331]
[1753887998253,7.62058749,118810.0,118800.0,1.29548685]
[1753887998471,7.53437361,118810.0,118800.0,1.41130039]
[1753887998679,6.96827449,118810.0,118800.0,1.44601039]
[1753887998904,7.68437361,118810.0,118800.0,1.43757393]
[1753887999090,7.68437232,118810.0,118800.0,1.43757393]
[1753887999314,7.68437232,118810.0,118800.0,1.42400747]
[1753887999315,7.67647781,118810.0,118800.0,1.42400747]
[1753887999518,7.68437262,118810.0,118800.0,1.42400747]
[1753887999722,7.77694262,118810.0,118800.0,1.26174101]
[1753887999931,7.80194262,118810.0,118800.0,1.26174101]
[1753888000146,7.80194262,118810.0,118800.0,0.25097813]
[1753888000147,8.19462421,118810.0,118800.0,0.25097813]
[1753888000440,8.39462421,118810.0,118800.0,0.05309832]
[1753888000632,5.58485631,118780.0,118770.0,0.16243776]
[1753888000840,6.3033252,118780.0,118770.0,0.11951984]
[1753888001044,6.66137476,118780.0,118770.0,0.11951984]
[1753888001500,5.89466564,118780.0,118770.0,0.11951984]
[1753888001718,6.61076476,118780.0,118770.0,0.11951984]
[1753888001934,6.63441977,118780.0,118770.0,0.0001458]
[1753888002140,6.63542101,118780.0,118770.0,0.0001458]
[1753888002375,6.6354204,118780.0,118770.0,0.0031458]
[1753888002592,6.72469773,118780.0,118770.0,0.0031458]
[1753888002804,0.72681218,118770.0,118760.0,0.03374]
[1753888003031,7.15063028,118770.0,118760.0,0.15645538]
[1753888003264,1.09271167,118750.0,118740.0,0.16114]
[1753888003523,7.28723345,118750.0,118740.0,0.0034]
[1753888003736,7.28723345,118750.0,118730.0,0.18361316]
[1753888003737,5.55796087,118740.0,118730.0,0.18361316]
[1753888003962,6.54200265,118740.0,118730.0,0.18361316]
[1753888004189,6.62157178,118740.0,118730.0,0.15121316]
[1753888004643,5.92015733,118740.0,118730.0,0.18353316]
[1753888004888,6.27020758,118740.0,118730.0,0.18353316]
[1753888005318,6.27020758,118740.0,118730.0,0.17739225]
[1753888005771,6.27020758,118740.0,118730.0,0.18050225]
[1753888005772,5.92642887,118740.0,118730.0,0.18050225]
[1753888005988,6.02941072,118740.0,118730.0,0.18050225]
[1753888006225,6.10437174,118730.0,118720.0,0.0034]
[1753888006446,6.63498689,118730.0,118720.0,0.07153]
[1753888006660,6.63498689,118730.0,118720.0,0.06309126]
[1753888006910,6.80394149,118730.0,118720.0,0.06309126]
[1753888007129,6.80393431,118730.0,118720.0,0.05465252]
[1753888007355,6.80393431,118730.0,118720.0,0.02779126]
[1753888007581,6.47252106,118730.0,118720.0,0.02779126]
[1753888007805,6.82472131,118730.0,118720.0,0.01624252]
[1753888008026,5.71688664,118720.0,118710.0,0.00355]
[1753888008207,6.40696818,118720.0,118710.0,0.126802]
[1753888008697,0.17690154,118710.0,118700.0,0.006]
[1753888008937,6.80667425,118710.0,118700.0,0.13025]
[1753888009145,6.86363228,118710.0,118700.0,0.13025]
[1753888009350,6.515777,118710.0,118700.0,0.13025]
[1753888009785,6.17415042,118710.0,118700.0,0.13025]
[1753888010008,6.17415042,118710.0,118700.0,0.16155]
[1753888010009,6.515777,118710.0,118700.0,0.16155]
[1753888010413,6.515777,118710.0,118700.0,0.16466]
[1753888010684,6.515777,118710.0,118700.0,0.16766]
[1753888010906,7.01577074,118710.0,118700.0,0.19986]
[1753888011131,7.02594976,118710.0,118700.0,0.19986]
[1753888011434,7.37600001,118710.0,118700.0,0.19675]
[1753888011684,7.10463164,118710.0,118700.0,0.19875]
[1753888011913,7.07379842,118710.0,118700.0,0.19875]
[1753888012138,7.07970192,118710.0,118700.0,0.19875]
[1753888012367,6.95937257,118710.0,118700.0,0.19875]
[1753888012627,7.09078257,118710.0,118700.0,0.20186]
[1753888012842,7.08060355,118710.0,118700.0,0.20186]
[1753888013064,2.08060355,118710.0,118700.0,0.20186]
[1753888013288,1.56367933,118710.0,118700.0,0.20186]
[1753888013499,2.00559436,118710.0,118700.0,0.20186]
[1753888013738,7.0314667,118710.0,118700.0,0.20186]
[1753888013953,7.02304338,118710.0,118700.0,0.20186]
[1753888014171,6.69832713,118710.0,118700.0,0.20186]
[1753888014384,6.60752904,118710.0,118700.0,0.20186]
[1753888014603,6.61595257,118710.0,118700.0,0.20186]
[1753888014816,7.14127778,118710.0,118700.0,0.20186]
[1753888015249,6.97279998,118710.0,118700.0,0.20186]
[1753888015431,6.98122387,118710.0,118700.0,0.20186]
[1753888015672,7.14127778,118710.0,118700.0,0.20186]
[1753888015885,7.14127778,118710.0,118700.0,0.0745]
[1753888015886,7.67114851,118710.0,118700.0,0.0745]
[1753888016101,7.69904039,118710.0,118700.0,0.011]
[1753888016333,7.32483281,118710.0,118700.0,0.011]
[1753888016518,7.64996118,118710.0,118700.0,0.011]
[1753888017070,7.17504093,118710.0,118700.0,0.20368]
[1753888017978,7.21007281,118710.0,118700.0,0.0437]
[1753888018193,7.30494093,118710.0,118700.0,0.0437]
[1753888018413,7.18515093,118710.0,118700.0,0.20069]
[1753888018882,7.30494093,118710.0,118700.0,0.074]
[1753888019366,7.65499118,118710.0,118700.0,0.074]
[1753888019646,7.30494093,118710.0,118700.0,0.0437]
[1753888019874,7.30494093,118710.0,118700.0,0.011]
[1753888019875,7.6579578,118710.0,118700.0,0.011]
[1753888020086,7.32603967,118710.0,118700.0,0.011]
[1753888020301,7.20327967,118710.0,118700.0,0.011]
[1753888020522,7.32306967,118710.0,118700.0,0.00255936]
[1753888020743,7.70703701,118710.0,118700.0,0.00255936]
[1753888020971,0.56752644,118700.0,118690.0,0.0321]
[1753888021189,6.53693842,118700.0,118690.0,0.0631]
[1753888021438,6.53904842,118700.0,118690.0,0.0631]
[1753888021874,6.67628744,118700.0,118690.0,0.0631]
[1753888022310,6.67628744,118700.0,118680.0,0.19098]
[1753888022311,6.11754135,118690.0,118680.0,0.19098]
[1753888022528,6.99226522,118690.0,118680.0,0.19299]
[1753888023037,7.00545636,118690.0,118680.0,0.19299]
[1753888023273,0.56755626,118680.0,118670.0,0.23688]
[1753888023492,6.30748609,118680.0,118670.0,0.05]
[1753888023717,1.44152729,118680.0,118670.0,0.04155705]
[1753888023945,6.41736996,118680.0,118670.0,0.04155705]
[1753888024176,6.04239783,118680.0,118670.0,0.0331141]
[1753888024398,6.39244808,118680.0,118670.0,0.0331141]
[1753888024632,6.39244808,118680.0,118670.0,0.02467115]
[1753888024856,0.55842658,118670.0,118660.0,0.00344]
[1753888025087,6.92614544,118670.0,118660.0,0.00344]
[1753888025324,5.5850351,118660.0,118650.0,0.092]
[1753888025560,6.19104898,118660.0,118650.0,0.21869]
[1753888025775,6.19315898,118660.0,118650.0,0.09401]
[1753888026050,0.96586873,118660.0,118650.0,0.03]
[1753888026258,1.40039387,118660.0,118650.0,0.03]
[1753888026484,1.38790217,118660.0,118650.0,0.03]
[1753888026697,6.36001029,118660.0,118650.0,0.03]
[1753888026916,6.00996004,118660.0,118650.0,0.03]
[1753888027140,6.36001029,118660.0,118650.0,0.03]
[1753888027368,6.10626029,118660.0,118650.0,0.22019]
[1753888027592,6.3602986,118660.0,118650.0,0.22328]
[1753888027803,6.88731761,118660.0,118650.0,0.22328]
[1753888028034,6.07169451,118660.0,118650.0,0.22328]
[1753888028251,6.73566333,118660.0,118650.0,0.22328]
[1753888028489,6.64968942,118660.0,118650.0,0.22328]
[1753888028702,6.98126248,118660.0,118650.0,0.22328]
[1753888029132,6.98975404,118660.0,118650.0,0.22328]
[1753888029362,6.98975404,118660.0,118650.0,0.0935]
[1753888029363,6.76160379,118660.0,118650.0,0.0935]
[1753888029589,6.76160379,118660.0,118650.0,0.0955]
[1753888029590,7.09845762,118660.0,118650.0,0.0955]
[1753888029847,7.0035895,118660.0,118650.0,0.0955]
[1753888030093,7.47428975,118660.0,118650.0,0.032]
[1753888030306,7.1242395,118660.0,118650.0,0.032]
[1753888030533,6.79834658,118660.0,118650.0,0.032]
[1753888030752,7.14839683,118660.0,118650.0,0.032]
[1753888031429,7.14238822,118660.0,118650.0,0.032]
[1753888031670,6.99470634,118660.0,118650.0,0.0954]
[1753888031893,6.97655762,118660.0,118650.0,0.22008]
[1753888032120,6.16505392,118660.0,118650.0,0.22317]
[1753888032362,6.73197177,118660.0,118650.0,0.22317]
[1753888032595,5.95841848,118660.0,118650.0,0.22317]
[1753888032824,0.82357848,118660.0,118650.0,0.24817]
[1753888033042,5.82357848,118660.0,118650.0,0.24817]
[1753888033291,5.86869348,118660.0,118650.0,0.27317]
[1753888033513,5.73862478,118660.0,118650.0,0.300787]
[1753888033958,5.73762478,118660.0,118650.0,0.27317]
[1753888034471,6.07762478,118660.0,118650.0,0.27317]
[1753888034732,6.28705172,118660.0,118650.0,0.22417]
[1753888034966,6.65395634,118660.0,118650.0,0.22417]
[1753888035174,6.98285888,118660.0,118650.0,0.22217]
[1753888035450,6.97919879,118660.0,118650.0,0.22217]
[1753888035694,6.54311701,118660.0,118650.0,0.22617]
[1753888035933,6.89216726,118660.0,118650.0,0.0661]
[1753888036175,6.89116726,118660.0,118650.0,0.0621]
[1753888036422,6.5534748,118660.0,118650.0,0.22257]
[1753888036681,6.35523829,118660.0,118650.0,0.21057]
[1753888036919,7.44857453,118660.0,118650.0,0.00955698]
[1753888037165,7.48137453,118660.0,118650.0,0.00755698]
[1753888037395,7.48137453,118660.0,118640.0,0.003]
[1753888037396,5.68444002,118650.0,118640.0,0.003]
[1753888037658,6.62773107,118650.0,118640.0,0.003]
[1753888037904,6.62773107,118650.0,118620.0,0.0209762]
[1753888037905,5.89289906,118630.0,118620.0,0.0209762]
[1753888038155,6.51113986,118630.0,118620.0,0.0209762]
[1753888038401,1.71381986,118630.0,118620.0,0.0209762]
[1753888038687,1.84977891,118630.0,118620.0,0.0209762]
[1753888038927,6.88529984,118630.0,118620.0,0.0209762]
[1753888039170,6.90106845,118630.0,118620.0,0.0209762]
[1753888039411,7.40155284,118630.0,118620.0,0.0209762]
[1753888039655,7.40255284,118630.0,118620.0,0.0219762]
[1753888039838,7.38935379,118630.0,118620.0,0.0219762]
[1753888040042,7.38935379,118630.0,118620.0,0.0229762]
[1753888041376,7.41471179,118630.0,118620.0,0.0229762]
[1753888042083,7.41471179,118630.0,118620.0,0.01452802]
[1753888042338,7.44641179,118630.0,118620.0,0.01452802]
[1753888042556,0.57411484,118620.0,118610.0,4e-05]
[1753888042774,1.08449971,118610.0,118600.0,0.22]
[1753888042990,7.06908533,118610.0,118600.0,0.22]
[1753888043205,7.167688,118610.0,118600.0,0.22]
[1753888043643,6.79271587,118610.0,118600.0,0.21155182]
[1753888043862,7.25824342,118610.0,118600.0,0.21155182]
[1753888044080,7.13628487,118610.0,118600.0,0.20310364]
[1753888044297,7.27140487,118610.0,118600.0,0.18110364]
[1753888044516,7.27140487,118610.0,118600.0,0.17265546]
[1753888044732,7.77140487,118610.0,118600.0,0.17065546]
[1753888044949,7.85050864,118610.0,118600.0,0.07998427]
[1753888045394,7.85050864,118610.0,118600.0,0.07153609]
[1753888045619,7.07089066,118610.0,118600.0,0.22590609]
[1753888045847,7.20597066,118610.0,118600.0,0.22590609]
[1753888046100,7.25001613,118610.0,118600.0,0.07153609]
[1753888046321,6.82538588,118610.0,118600.0,0.07153609]
[1753888046535,7.07988861,118610.0,118600.0,0.19909609]
[1753888046759,7.09675023,118610.0,118600.0,0.22949609]
[1753888046982,7.09675023,118610.0,118600.0,0.07153609]
[1753888047205,7.12210823,118610.0,118600.0,0.07153609]
[1753888047427,7.12226823,118610.0,118600.0,0.07153609]
[1753888047644,7.07660902,118610.0,118600.0,0.23129609]
[1753888047866,7.28508001,118610.0,118600.0,0.26279609]
[1753888048094,6.54111731,118610.0,118600.0,0.26279609]
[1753888048321,6.00164717,118610.0,118600.0,0.26279609]
[1753888048556,6.60867545,118610.0,118600.0,0.26279609]
[1753888048799,6.89110959,118610.0,118600.0,0.23219609]
[1753888049016,6.20105934,118610.0,118600.0,0.26309609]
[1753888049231,6.52419815,118610.0,118600.0,0.26309609]
[1753888049454,6.23303212,118610.0,118600.0,0.26309609]
[1753888049675,6.56460156,118610.0,118600.0,0.26309609]
[1753888049908,6.58205058,118610.0,118600.0,0.26309609]
[1753888050139,6.58205058,118610.0,118600.0,0.28809609]
[1753888050140,6.19061476,118610.0,118600.0,0.28809609]
[1753888050362,6.53061476,118610.0,118600.0,0.28809609]
[1753888050580,5.94556025,118610.0,118600.0,0.31309609]
[1753888050805,5.97565512,118610.0,118600.0,0.31309609]
[1753888051021,6.31465512,118610.0,118600.0,0.31309609]
[1753888051275,6.17745512,118610.0,118600.0,0.31309609]
[1753888051504,6.31561512,118610.0,118600.0,0.29009609]
[1753888051713,6.31561512,118610.0,118600.0,0.31509609]
[1753888051936,6.31465512,118610.0,118600.0,0.3941057]
[1753888052148,6.25920225,118610.0,118600.0,0.27209609]
[1753888052368,6.29029712,118610.0,118600.0,0.27209609]
[1753888052811,6.29029712,118610.0,118600.0,0.27009609]
[1753888053027,6.28929712,118610.0,118600.0,0.27009609]
[1753888053254,6.29029712,118610.0,118600.0,0.27309609]
[1753888053916,6.29129712,118610.0,118600.0,0.25309609]
[1753888054104,6.49129712,118610.0,118600.0,0.25309609]
[1753888054578,6.85879639,118610.0,118600.0,0.25309609]
[1753888054797,7.06778805,118610.0,118600.0,0.19400609]
[1753888055037,6.89916821,118610.0,118600.0,0.19400609]
[1753888055232,6.89912636,118610.0,118600.0,0.19400609]
[1753888055369,6.55750601,118610.0,118600.0,0.22989609]
[1753888055588,6.64198331,118610.0,118600.0,0.22989609]
[1753888055795,6.56593657,118610.0,118600.0,0.22989609]
[1753888055997,6.56493657,118610.0,118600.0,0.22989609]
[1753888056194,6.91498682,118610.0,118600.0,0.19400609]
[1753888056430,6.91298682,118610.0,118600.0,0.18600609]
[1753888056795,6.91398682,118610.0,118600.0,0.19000609]
[1753888057006,6.99846412,118610.0,118600.0,0.19000609]
[1753888057423,6.64841387,118610.0,118600.0,0.19000609]
[1753888057690,6.99946412,118610.0,118600.0,0.19100609]
[1753888057914,7.00789489,118610.0,118600.0,0.19100609]
[1753888058378,7.00789482,118610.0,118600.0,0.19100609]
[1753888058794,7.00787333,118610.0,118600.0,0.19100609]
[1753888059226,7.01630418,118610.0,118600.0,0.19100609]
[1753888059437,7.00787333,118610.0,118600.0,0.19100609]
[1753888059652,6.63253147,118610.0,118600.0,0.19419609]
[1753888059868,6.21185417,118610.0,118600.0,0.18299609]
[1753888060109,6.21185417,118610.0,118600.0,0.2275051]
[1753888060110,5.97673531,118610.0,118600.0,0.2275051]
[1753888060328,6.31673531,118610.0,118600.0,0.2275051]
[1753888060541,5.75493801,118610.0,118600.0,0.2275051]
[1753888060754,5.86694501,118610.0,118600.0,0.3119824]
[1753888060973,6.20694501,118610.0,118600.0,0.3119824]
[1753888061189,0.95042231,118610.0,118600.0,0.2265051]
[1753888061649,6.29042231,118610.0,118600.0,0.2235051]
[1753888062079,6.30547399,118610.0,118600.0,0.2235051]
[1753888062310,6.30551399,118610.0,118600.0,0.1985051]
[1753888062519,1.50551399,118610.0,118600.0,0.1985051]
[1753888062732,6.50551399,118610.0,118600.0,0.1985051]
[1753888063149,6.50548079,118610.0,118600.0,0.2015051]
[1753888063369,6.51391128,118610.0,118600.0,0.1765051]
[1753888063601,5.96877798,118610.0,118600.0,0.1682692]
[1753888063820,5.96877791,118610.0,118600.0,0.1932692]
[1753888064071,5.96034756,118610.0,118600.0,0.1682692]
[1753888064279,6.59780545,118610.0,118600.0,0.004]
[1753888064485,5.56529381,118600.0,118590.0,0.5883]
[1753888064726,5.83456137,118600.0,118590.0,0.5883]
[1753888064948,6.01162713,118600.0,118590.0,0.5883]
[1753888065161,5.83516279,118600.0,118590.0,0.5883]
[1753888065415,5.84300962,118600.0,118590.0,0.5883]
[1753888065598,5.84300991,118600.0,118590.0,0.71267]
[1753888065848,6.92421846,118600.0,118590.0,0.5]
[1753888066068,7.11556048,118600.0,118590.0,0.43156037]
[1753888066500,7.04079315,118600.0,118590.0,0.43156037]
[1753888066944,7.06495048,118600.0,118590.0,0.42738449]
[1753888067162,6.95491846,118600.0,118590.0,0.41946299]
[1753888067383,7.01054034,118600.0,118590.0,0.41946299]
[1753888067591,7.01154034,118600.0,118590.0,0.38547791]
[1753888068016,6.98961846,118600.0,118590.0,0.38647791]
[1753888068227,7.0490156,118600.0,118590.0,0.38547791]
[1753888068439,7.04607494,118600.0,118590.0,0.38447791]
[1753888068646,2.04907494,118600.0,118590.0,0.38447791]
[1753888068858,7.05507494,118600.0,118590.0,0.38547791]
[1753888069071,6.9946778,118600.0,118590.0,0.38547791]
[1753888069937,7.4946778,118600.0,118590.0,0.38547791]
[1753888070231,7.11380755,118600.0,118590.0,0.38547791]
[1753888070483,6.7637573,118600.0,118590.0,0.38547791]
[1753888070715,7.11380755,118600.0,118590.0,0.38547791]
[1753888070954,6.97126855,118600.0,118590.0,0.38547791]
[1753888071195,6.7583783,118600.0,118590.0,0.38547791]
[1753888071421,7.16887416,118600.0,118590.0,0.38547791]
[1753888071654,7.10842855,118600.0,118590.0,0.38547791]
[1753888072337,6.36495694,118600.0,118590.0,0.38547791]
[1753888072567,6.68391125,118600.0,118590.0,0.38547791]
[1753888072814,7.07299046,118600.0,118590.0,0.29421974]
[1753888073104,7.141857,118600.0,118590.0,0.29421974]
[1753888073443,2.14192341,118600.0,118590.0,0.29421974]
[1753888073659,2.59973709,118600.0,118590.0,0.27499687]
[1753888073929,7.59973709,118600.0,118590.0,0.27499687]
[1753888074110,7.61294001,118600.0,118590.0,0.27499687]
[1753888074322,7.61294001,118600.0,118590.0,0.25862452]
[1753888074733,7.61294001,118600.0,118590.0,0.25017414]
[1753888074937,7.61294001,118600.0,118590.0,0.24468141]
[1753888075158,7.61294001,118600.0,118590.0,0.23623103]
[1753888075159,7.58801813,118600.0,118590.0,0.23623103]
[1753888075370,7.58801813,118600.0,118590.0,0.21623103]
[1753888075604,7.58801813,118600.0,118590.0,0.20778065]
[1753888076023,7.58801813,118600.0,118590.0,0.12621199]
[1753888076489,7.58801813,118600.0,118590.0,0.11776096]
[1753888076490,7.59609813,118600.0,118590.0,0.11776096]
[1753888076701,7.45885813,118600.0,118590.0,0.11776096]
[1753888076973,7.59609813,118600.0,118590.0,0.11776096]
[1753888077197,7.59610228,118600.0,118590.0,0.11776096]
[1753888077843,7.68160368,118600.0,118590.0,0.11776096]
[1753888078399,7.54436368,118600.0,118590.0,0.11776096]
[1753888078609,7.6566018,118600.0,118590.0,0.11776096]
[1753888079228,7.5194418,118600.0,118590.0,0.11776096]
[1753888079450,7.56270228,118600.0,118590.0,0.06114554]
[1753888079946,7.54949936,118600.0,118590.0,0.06114554]
[1753888080385,7.54958972,118600.0,118590.0,0.06114554]
[1753888080796,2.57998972,118600.0,118590.0,0.06114554]
[1753888081027,6.87988922,118600.0,118590.0,0.06114554]
[1753888081266,7.57998972,118600.0,118590.0,0.06114554]
[1753888081729,7.54950972,118600.0,118590.0,0.06114554]
[1753888082589,7.69055271,118600.0,118590.0,0.06114554]
[1753888082804,7.69055271,118600.0,118590.0,0.05322304]
[1753888083023,7.70375667,118600.0,118590.0,0.04222304]
[1753888083308,7.00365617,118600.0,118590.0,0.04222304]
[1753888083533,7.70375689,118600.0,118590.0,0.04222304]
[1753888083743,7.68173956,118600.0,118590.0,0.03398363]
[1753888083960,7.67373956,118600.0,118590.0,0.03398363]
[1753888084391,7.65703342,118600.0,118590.0,0.03398363]
[1753888085719,7.65703342,118600.0,118590.0,0.022998]
[1753888086188,7.65703342,118600.0,118580.0,0.0034]
[1753888086189,1.08518982,118590.0,118580.0,0.0034]
[1753888086391,6.46822912,118590.0,118580.0,0.0034]
[1753888086603,6.61933912,118590.0,118580.0,0.0034]
[1753888086810,6.65073912,118590.0,118580.0,0.0034]
[1753888087277,6.82544526,118590.0,118580.0,0.0034]
[1753888087496,6.82592935,118590.0,118580.0,0.0034]
[1753888087717,6.82592935,118590.0,118580.0,0.0044]
[1753888087718,6.83785821,118590.0,118580.0,0.0044]
[1753888087942,1.83585821,118590.0,118580.0,0.0034]
[1753888088151,7.33585821,118590.0,118580.0,0.0034]
[1753888088412,7.33985821,118590.0,118580.0,0.0044]
[1753888088610,7.31515207,118590.0,118580.0,0.0044]
[1753888089266,7.31515258,118590.0,118580.0,0.0044]
[1753888089477,5.94360292,118570.0,118560.0,0.1207]
[1753888089695,6.85779634,118570.0,118560.0,0.12285]
[1753888089909,6.85993634,118570.0,118560.0,0.12285]
[1753888090123,6.50988609,118570.0,118560.0,0.12285]
[1753888090336,6.85993634,118570.0,118560.0,0.12285]
[1753888090550,6.90315999,118570.0,118560.0,0.15724]
[1753888090771,1.90317059,118570.0,118560.0,0.14624]
[1753888091019,6.90317059,118570.0,118560.0,0.14624]
[1753888091227,6.90417059,118570.0,118560.0,0.14924]
[1753888091441,6.56761059,118570.0,118560.0,0.14924]
[1753888091666,6.56761059,118570.0,118560.0,0.18084]
[1753888091667,6.25039588,118570.0,118560.0,0.18084]
[1753888091874,6.93594006,118570.0,118560.0,0.18084]
[1753888092056,6.76726846,118570.0,118560.0,0.18084]
[1753888092293,6.05409427,118570.0,118560.0,0.20584]
[1753888092535,6.02149626,118570.0,118560.0,0.20584]
[1753888092744,6.71122045,118570.0,118560.0,0.20584]
[1753888093178,6.57470045,118570.0,118560.0,0.20584]
[1753888093393,6.68088579,118570.0,118560.0,0.20584]
[1753888093577,6.70320818,118570.0,118560.0,0.20584]
[1753888093784,6.71164137,118570.0,118560.0,0.20584]
[1753888094013,6.70320818,118570.0,118560.0,0.20584]
[1753888094201,6.70420818,118570.0,118560.0,0.20584]
[1753888094401,6.83143471,118570.0,118560.0,0.18084]
[1753888094600,7.18148496,118570.0,118560.0,0.18084]
[1753888094829,6.1851772,118570.0,118560.0,0.20584]
[1753888094969,6.50412818,118570.0,118560.0,0.20584]
[1753888095171,6.51256158,118570.0,118560.0,0.20584]
[1753888095418,6.37616158,118570.0,118560.0,0.20584]
[1753888095686,6.36772818,118570.0,118560.0,0.20584]
[1753888095965,6.50405823,118570.0,118560.0,0.20584]
[1753888096166,6.36773823,118570.0,118560.0,0.20584]
[1753888096432,6.50405823,118570.0,118560.0,0.20584]
[1753888096626,6.15643907,118570.0,118560.0,0.228924]
[1753888096857,6.15543919,118570.0,118560.0,0.228924]
[1753888097085,6.20443919,118570.0,118560.0,0.250924]
[1753888097313,6.54543919,118570.0,118560.0,0.250924]
[1753888097608,6.54643919,118570.0,118560.0,0.23184]
[1753888097879,6.54643919,118570.0,118560.0,0.22784]
[1753888098099,6.54743919,118570.0,118560.0,0.23284]
[1753888098538,6.52465596,118570.0,118560.0,0.18984]
[1753888099227,6.52365596,118570.0,118560.0,0.18984]
[1753888099679,6.52465596,118570.0,118560.0,0.19084]
[1753888099901,6.52465596,118570.0,118560.0,0.209924]
[1753888100767,0.59811243,118570.0,118560.0,0.55997425]
[1753888100966,0.6541804,118570.0,118560.0,0.55997425]
[1753888101174,0.43782742,118570.0,118560.0,0.7286652]
[1753888101388,0.54159557,118570.0,118560.0,0.6656652]
[1753888101626,0.54159557,118570.0,118560.0,0.68253407]
[1753888101627,0.40559557,118570.0,118560.0,0.68253407]
[1753888101856,0.40559557,118570.0,118560.0,0.78387967]
[1753888101857,0.56089557,118570.0,118560.0,0.78387967]
[1753888102099,0.501,118570.0,118560.0,0.77887967]
[1753888102376,0.5,118570.0,118560.0,0.76944563]
[1753888102586,0.501,118570.0,118560.0,0.79231394]
[1753888102798,0.502,118570.0,118560.0,0.79431344]
[1753888103016,0.502,118570.0,118560.0,0.81931344]
[1753888103252,0.50199901,118570.0,118560.0,0.81931344]
[1753888103456,0.50099901,118570.0,118560.0,0.83476246]
[1753888103722,0.00015277,118580.0,118570.0,0.23554418]
[1753888103935,0.15685992,118590.0,118580.0,0.51871275]
[1753888104143,0.14693106,118590.0,118580.0,0.66651275]
[1753888104368,0.13904,118590.0,118580.0,0.66651275]
[1753888104573,0.14857425,118590.0,118580.0,0.66651275]
[1753888104795,0.15646107,118590.0,118580.0,0.52285025]
[1753888105012,0.216437,118590.0,118580.0,0.53696935]
[1753888105605,0.216237,118590.0,118580.0,0.70563185]
[1753888105824,0.081397,118590.0,118580.0,0.53896935]
[1753888106287,0.081397,118590.0,118580.0,0.1889191]
[1753888106498,0.081397,118590.0,118580.0,0.53896935]
[1753888107148,0.01353425,118590.0,118580.0,0.70763185]
[1753888107394,0.004,118590.0,118580.0,0.70763185]
[1753888107666,0.005,118590.0,118580.0,0.70963185]
[1753888108105,0.005,118590.0,118580.0,0.54096935]
[1753888108355,0.005,118590.0,118580.0,0.70963185]
[1753888108811,0.005,118590.0,118580.0,0.71806483]
[1753888109050,0.005,118590.0,118580.0,1.16945784]
[1753888109289,0.005,118590.0,118580.0,1.19445784]
[1753888109502,0.005,118590.0,118580.0,0.83597497]
[1753888109699,0.005,118590.0,118580.0,0.84240766]
[1753888109921,0.004,118590.0,118580.0,0.49235741]
[1753888110129,0.005,118590.0,118580.0,1.19445791]
[1753888110347,0.004,118590.0,118580.0,1.19245791]
[1753888110561,0.004,118590.0,118580.0,1.23490693]
[1753888110772,0.005,118590.0,118580.0,1.24390693]
[1753888111429,0.003,118610.0,118600.0,0.2439283]
[1753888111659,0.003,118610.0,118600.0,1.18038848]
[1753888111858,0.003,118610.0,118600.0,1.18355848]
[1753888112077,0.003,118610.0,118600.0,1.29951848]
[1753888112755,0.003,118610.0,118600.0,1.32451848]
[1753888113238,0.003,118610.0,118600.0,1.34964837]
[1753888113861,0.004,118610.0,118600.0,1.31264837]
[1753888114066,0.004,118610.0,118600.0,1.32951098]
[1753888115186,0.005,118610.0,118600.0,1.33351098]
[1753888115927,0.005,118610.0,118600.0,1.33319098]
[1753888116875,0.005,118610.0,118600.0,1.19787098]
[1753888117115,0.005,118610.0,118600.0,0.95495018]
[1753888117309,0.005,118610.0,118600.0,0.74013993]
[1753888117821,0.005,118610.0,118600.0,0.65566263]
[1753888118080,0.13072091,118610.0,118600.0,0.65566263]
[1753888118324,0.13072091,118610.0,118600.0,0.40129263]
[1753888118325,0.25532091,118610.0,118600.0,0.40129263]
[1753888119990,0.25532091,118610.0,118600.0,0.39918263]
[1753888120196,0.26122036,118610.0,118600.0,0.39918263]
[1753888120405,0.39630036,118610.0,118600.0,0.39918263]
[1753888120661,0.39630036,118610.0,118600.0,0.04913238]
[1753888120878,0.81882263,118610.0,118600.0,0.03504838]
[1753888121091,0.81882263,118610.0,118600.0,0.0371563]
[1753888121550,0.81882866,118610.0,118600.0,0.0371563]
[1753888124563,0.81533821,118610.0,118600.0,0.03504838]
[1753888124780,0.83699646,118610.0,118600.0,0.03504838]
[1753888124987,0.83699749,118610.0,118600.0,0.03504838]
[1753888125471,6.48892381,118610.0,118600.0,0.01004838]
[1753888125690,6.51170704,118610.0,118600.0,0.01004838]
[1753888126535,6.52362598,118610.0,118600.0,0.00604838]
[1753888127407,6.52362598,118610.0,118600.0,4.838e-05]
[1753888127840,6.52462598,118610.0,118600.0,0.00104838]
[1753888128093,6.52465341,118610.0,118600.0,0.00104838]